fUST/lending_fUST_20250601
["ID","MTS","AMOUNT","RATE_DAILY","PERIOD"]
[363631376,1748793040750,-430.0,0.00016438,2]
[363631377,1748793040765,-430.0,0.00016438,2]
[363631378,1748793040779,-317.08922875,0.00016438,2]
[363631379,1748793040789,-1518.17295832,0.00016612,2]
[363631380,1748793040799,-487.1,0.00016702,3]
[363631381,1748793040809,-243.55,0.00016702,3]
[363631382,1748793040820,-730.69,0.00016702,3]
[363631383,1748793040830,-1000.0,0.0001671,2]
[363631385,1748793040840,-160.0,0.00016711,2]
[363631387,1748793040850,-1125.0,0.00016711,2]
[363631389,1748793040861,-539.73318184,0.00016712,2]
[363631391,1748793040871,-330.8206904,0.00016712,2]
[363631393,1748793040880,-430.0,0.00016712,2]
[363631395,1748793040889,-430.0,0.00016712,2]
[363631396,1748793040899,-435.56762177,0.00016712,2]
[363631398,1748793040908,-248.47388553,0.00016712,2]
[363631400,1748793040919,-430.0,0.00016712,2]
[363631402,1748793040929,-430.0,0.00016712,2]
[363631404,1748793040938,-430.0,0.00016712,2]
[363631406,1748793040948,-540.72978913,0.00016712,2]
[363631408,1748793040957,-430.0,0.00016712,2]
[363631410,1748793040967,-430.0,0.00016712,2]
[363631412,1748793040977,-430.0,0.00016712,2]
[363631414,1748793040988,-509.21374089,0.00016712,2]
[363631416,1748793040998,-430.0,0.00016712,2]
[363631418,1748793041008,-430.0,0.00016712,2]
[363631420,1748793041017,-430.0,0.00016712,2]
[363631422,1748793041027,-430.0,0.00016712,2]
[363631424,1748793041036,-430.0,0.00016712,2]
[363631426,1748793041047,-430.0,0.00016712,2]
[363631428,1748793041057,-430.0,0.00016712,2]
[363631429,1748793041067,-430.0,0.00016712,2]
[363631431,1748793041076,-430.0,0.00016712,2]
[363631433,1748793041085,-430.0,0.00016712,2]
[363631435,1748793041095,-430.0,0.00016712,2]
[363631437,1748793041104,-430.0,0.00016712,2]
[363631439,1748793041116,-430.0,0.00016712,2]
[363631441,1748793041127,-430.0,0.00016712,2]
[363631443,1748793041137,-430.0,0.00016712,2]
[363631445,1748793041146,-430.0,0.00016712,2]
[363631447,1748793041156,-312.13737178,0.00016712,2]
[363631449,1748793041166,-430.0,0.00016712,2]
[363631450,1748793041176,-430.0,0.00016712,2]
[363631452,1748793041186,-430.0,0.00016712,2]
[363631454,1748793041196,-188.76,0.00016712,2]
[363631456,1748793041206,-430.0,0.00016712,2]
[363631458,1748793041217,-430.0,0.00016712,2]
[363631460,1748793041226,-430.0,0.00016712,2]
[363631462,1748793041237,-430.0,0.00016712,2]
[363631464,1748793041250,-430.0,0.00016712,2]
[363631466,1748793041259,-430.0,0.00016712,2]
[363631468,1748793041270,-430.0,0.00016712,2]
[363631470,1748793041280,-430.0,0.00016712,2]
[363631472,1748793041290,-430.0,0.00016712,2]
[363631473,1748793041301,-430.0,0.00016712,2]
[363631475,1748793041311,-430.0,0.00016712,2]
[363631477,1748793041322,-430.0,0.00016712,2]
[363631479,1748793041332,-430.0,0.00016712,2]
[363631481,1748793041342,-430.0,0.00016712,2]
[363631483,1748793041352,-430.0,0.00016712,2]
[363631485,1748793041366,-380.06358609,0.00016712,2]
[363631487,1748793041376,-293.36143811,0.00016712,2]
[363631489,1748793041386,-430.0,0.00016712,2]
[363631491,1748793041395,-430.0,0.00016712,2]
[363631492,1748793041405,-430.0,0.00016712,2]
[363631494,1748793041415,-430.0,0.00016712,2]
[363631496,1748793041425,-430.0,0.00016712,2]
[363631498,1748793041435,-430.0,0.00016712,2]
[363631500,1748793041446,-464.73410924,0.00016712,2]
[363631502,1748793041455,-430.0,0.00016712,2]
[363631504,1748793041465,-430.0,0.00016712,2]
[363631505,1748793041475,-430.0,0.00016712,2]
[363631507,1748793041484,-430.0,0.00016712,2]
[363631509,1748793041494,-430.0,0.00016712,2]
[363631511,1748793041503,-430.0,0.00016712,2]
[363631513,1748793041514,-430.0,0.00016712,2]
[363631515,1748793041523,-430.0,0.00016712,2]
[363631517,1748793041533,-430.0,0.00016712,2]
[363631519,1748793041543,-179.28421111,0.00016712,2]
[363631521,1748793041552,-430.0,0.00016712,2]
[363631523,1748793041562,-430.0,0.00016712,2]
[363631524,1748793041572,-430.0,0.00016712,2]
[363631526,1748793041581,-430.0,0.00016712,2]
[363631528,1748793041590,-430.0,0.00016712,2]
[363631530,1748793041600,-430.0,0.00016712,2]
[363631532,1748793041609,-430.0,0.00016712,2]
[363631534,1748793041620,-430.0,0.00016712,2]
[363631536,1748793041629,-430.0,0.00016712,2]
[363631538,1748793041639,-430.0,0.00016712,2]
[363631540,1748793041648,-430.0,0.00016712,2]
[363631542,1748793041657,-430.0,0.00016712,2]
[363631544,1748793041666,-430.0,0.00016712,2]
[363631545,1748793041675,-249.76687433,0.00016712,2]
[363631547,1748793041685,-430.0,0.00016712,2]
[363631549,1748793041694,-430.0,0.00016712,2]
[363631551,1748793041703,-430.0,0.00016712,2]
[363631553,1748793041713,-430.0,0.00016712,2]
[363631555,1748793041722,-430.0,0.00016712,2]
[363631557,1748793041731,-430.0,0.00016712,2]
[363631559,1748793041740,-430.0,0.00016712,2]
[363631561,1748793041749,-430.0,0.00016712,2]
[363631563,1748793041759,-430.0,0.00016712,2]
[363631565,1748793041769,-430.0,0.00016712,2]
[363631567,1748793041778,-430.0,0.00016712,2]
[363631569,1748793041787,-430.0,0.00016712,2]
[363631571,1748793041798,-430.0,0.00016712,2]
[363631572,1748793041807,-430.0,0.00016712,2]
[363631574,1748793041817,-430.0,0.00016712,2]
[363631576,1748793041828,-430.0,0.00016712,2]
[363631578,1748793041838,-1188.05,0.00016712,2]
[363631580,1748793041847,-430.0,0.00016712,2]
[363631582,1748793041856,-430.0,0.00016712,2]
[363631584,1748793041867,-983.01,0.00016712,2]
[363631586,1748793041876,-430.0,0.00016712,2]
[363631588,1748793041890,-564.07,0.00016712,2]
[363631590,1748793041900,-430.0,0.00016712,2]
[363631592,1748793041909,-430.0,0.00016712,2]
[363631594,1748793041919,-430.0,0.00016712,2]
[363631595,1748793041928,-430.0,0.00016712,2]
[363631597,1748793041939,-733.27,0.00016712,2]
[363631598,1748793041948,-1132.2,0.00016712,2]
[363631600,1748793041958,-430.0,0.00016712,2]
[363631602,1748793041968,-278.75,0.00016712,2]
[363631604,1748793041977,-430.0,0.00016712,2]
[363631605,1748793041987,-430.0,0.00016712,2]
[363631607,1748793041996,-430.0,0.00016712,2]
[363631609,1748793042006,-430.0,0.00016712,2]
[363631611,1748793042015,-430.0,0.00016712,2]
[363631613,1748793042025,-430.0,0.00016712,2]
[363631615,1748793042035,-430.0,0.00016712,2]
[363631616,1748793042044,-285.42,0.00016712,2]
[363631618,1748793042054,-430.0,0.00016712,2]
[363631620,1748793042063,-440.32,0.00016712,2]
[363631622,1748793042072,-458.48,0.00016712,2]
[363631624,1748793042082,-430.0,0.00016712,2]
[363631625,1748793042091,-430.0,0.00016712,2]
[363631627,1748793042101,-478.9,0.00016712,2]
[363631630,1748793042117,-430.0,0.00016712,2]
[363631631,1748793042127,-500.7,0.00016712,2]
[363631633,1748793042137,-430.0,0.00016712,2]
[363631635,1748793042146,-430.0,0.00016712,2]
[363631637,1748793042156,-430.0,0.00016712,2]
[363631639,1748793042167,-430.0,0.00016712,2]
[363631641,1748793042177,-430.0,0.00016712,2]
[363631642,1748793042186,-430.0,0.00016712,2]
[363631644,1748793042196,-452.99,0.00016712,2]
[363631646,1748793042205,-882.3,0.00016712,2]
[363631648,1748793042214,-772.13,0.00016712,2]
[363631650,1748793042225,-430.0,0.00016712,2]
[363631652,1748793042234,-430.0,0.00016712,2]
[363631654,1748793042244,-430.0,0.00016712,2]
[363631656,1748793042254,-430.0,0.00016712,2]
[363631657,1748793042264,-500.0,0.00016896,2]
[363631659,1748793042273,-500.0,0.00016896,2]
[363631661,1748793042283,-500.0,0.00016896,2]
[363631663,1748793042293,-2561.50294431,0.000169,2]
[363631665,1748793042304,-500.0,0.00016924,2]
[363631667,1748793042313,-507.26848738,0.00016933,2]
[363631669,1748793042323,-500.0,0.00016933,2]
[363631671,1748793042333,-500.0,0.00016958,2]
[363631672,1748793042343,-500.0,0.00016965,2]
[363631674,1748793042355,-500.0,0.00016974,2]
[363631676,1748793042367,-500.0,0.00016974,2]
[363631678,1748793042377,-500.0,0.00016974,2]
[363631680,1748793042386,-500.0,0.00016974,2]
[363631682,1748793042396,-500.0,0.00016974,2]
[363631684,1748793042406,-500.0,0.00016974,2]
[363631685,1748793042416,-403.30872545,0.00016974,2]
[363631686,1748793042425,-500.0,0.00016974,2]
[363631687,1748793042435,-500.0,0.00016974,2]
[363631688,1748793042445,-483.90864755,0.00016986,2]
[363631689,1748793042454,-430.0,0.00016986,2]
[363631690,1748793042464,-430.0,0.00016986,2]
[363631691,1748793042474,-430.0,0.00016986,2]
[363631692,1748793042483,-430.0,0.00016986,2]
[363631693,1748793042492,-430.0,0.00016986,2]
[363631694,1748793042502,-430.0,0.00016986,2]
[363631695,1748793042511,-430.0,0.00016986,2]
[363631696,1748793042521,-430.0,0.00016986,2]
[363631697,1748793042530,-430.0,0.00016986,2]
[363631698,1748793042539,-430.0,0.00016986,2]
[363631699,1748793042549,-430.0,0.00016986,2]
[363631700,1748793042559,-522.36518735,0.00016986,2]
[363631701,1748793042568,-430.0,0.00016986,2]
[363631702,1748793042578,-430.0,0.00016986,2]
[363631703,1748793042587,-223.29750905,0.00016986,2]
[363631704,1748793042597,-430.0,0.00016986,2]
[363631705,1748793042606,-430.0,0.00016986,2]
[363631706,1748793042616,-561.44090945,0.00016986,2]
[363631707,1748793042625,-430.0,0.00016986,2]
[363631708,1748793042635,-430.0,0.00016986,2]
[363631709,1748793042645,-430.0,0.00016986,2]
[363631710,1748793042654,-430.0,0.00016986,2]
[363631711,1748793042663,-520.0,0.00016986,2]
[363631712,1748793042673,-430.0,0.00016986,2]
[363631713,1748793042683,-478.58,0.00016986,2]
[363631714,1748793042693,-430.0,0.00016986,2]
[363631715,1748793042703,-430.0,0.00016986,2]
[363631716,1748793042712,-430.0,0.00016986,2]
[363631717,1748793042723,-430.0,0.00016986,2]
[363631718,1748793042732,-430.0,0.00016986,2]
[363631719,1748793042742,-430.0,0.00016986,2]
[363631720,1748793042751,-430.0,0.00016986,2]
[363631721,1748793042761,-430.0,0.00016986,2]
[363631722,1748793042771,-430.0,0.00016986,2]
[363631723,1748793042780,-430.0,0.00016986,2]
[363631724,1748793042792,-430.0,0.00016986,2]
[363631725,1748793042801,-430.0,0.00016986,2]
[363631726,1748793042811,-430.0,0.00016986,2]
[363631727,1748793042820,-430.0,0.00016986,2]
[363631728,1748793042830,-430.0,0.00016986,2]
[363631730,1748793042840,-430.0,0.00016986,2]
[363631731,1748793042849,-430.0,0.00016986,2]
[363631733,1748793042859,-430.0,0.00016986,2]
[363631735,1748793042869,-430.0,0.00016986,2]
[363631737,1748793042880,-430.0,0.00016986,2]
[363631739,1748793042890,-430.0,0.00016986,2]
[363631741,1748793042899,-430.0,0.00016986,2]
[363631743,1748793042909,-430.0,0.00016986,2]
[363631745,1748793042920,-430.0,0.00016986,2]
[363631747,1748793042930,-430.0,0.00016986,2]
[363631750,1748793042940,-430.0,0.00016986,2]
[363631752,1748793042950,-430.0,0.00016986,2]
[363631754,1748793042959,-487.42742233,0.00016986,2]
[363631756,1748793042969,-430.0,0.00016986,2]
[363631758,1748793042978,-430.0,0.00016986,2]
[363631760,1748793042988,-430.0,0.00016986,2]
[363631762,1748793042997,-430.0,0.00016986,2]
[363631764,1748793043006,-430.0,0.00016986,2]
[363631766,1748793043015,-430.0,0.00016986,2]
[363631768,1748793043025,-430.0,0.00016986,2]
[363631770,1748793043035,-430.0,0.00016986,2]
[363631772,1748793043044,-430.0,0.00016986,2]
[363631774,1748793043055,-430.0,0.00016986,2]
[363631776,1748793043065,-430.0,0.00016986,2]
[363631778,1748793043074,-430.0,0.00016986,2]
[363631780,1748793043084,-430.0,0.00016986,2]
[363631782,1748793043094,-1188.05,0.00016986,2]
[363631784,1748793043104,-983.01,0.00016986,2]
[363631786,1748793043114,-564.07,0.00016986,2]
[363631788,1748793043124,-430.0,0.00016986,2]
[363631790,1748793043134,-430.0,0.00016986,2]
[363631792,1748793043144,-733.27,0.00016986,2]
[363631794,1748793043154,-1132.2,0.00016986,2]
[363631796,1748793043164,-430.0,0.00016986,2]
[363631798,1748793043175,-430.0,0.00016986,2]
[363631800,1748793043184,-430.0,0.00016986,2]
[363631802,1748793043194,-430.0,0.00016986,2]
[363631804,1748793043204,-430.0,0.00016986,2]
[363631806,1748793043215,-375.92,0.00016986,2]
[363631808,1748793043224,-440.32,0.00016986,2]
[363631811,1748793043234,-430.0,0.00016986,2]
[363631813,1748793043244,-430.0,0.00016986,2]
[363631816,1748793043255,-478.9,0.00016986,2]
[363631818,1748793043265,-232.59843024,0.00016986,2]
[363631820,1748793043275,-430.0,0.00016986,2]
[363631822,1748793043286,-430.0,0.00016986,2]
[363631824,1748793043296,-430.0,0.00016986,2]
[363631826,1748793043306,-430.0,0.00016986,2]
[363631829,1748793043316,-183.19,0.00016986,2]
[363631831,1748793043326,-430.0,0.00016986,2]
[363631833,1748793043336,-452.99,0.00016986,2]
[363631835,1748793043346,-882.3,0.00016986,2]
[363631837,1748793043357,-772.13,0.00016986,2]
[363631839,1748793043371,-430.0,0.00016986,2]
[363631842,1748793043383,-430.0,0.00016986,2]
[363631844,1748793043393,-430.0,0.00016986,2]
[363631846,1748793043407,-265.27,0.00016986,2]
[363631848,1748793043417,-152.90414247,0.00017024,2]
[363631850,1748793043427,-500.0,0.00017115,2]
[363631852,1748793043438,-500.0,0.00017115,2]
[363631854,1748793043449,-500.0,0.00017115,2]
[363631856,1748793043460,-500.0,0.00017115,2]
[363631858,1748793043470,-500.0,0.00017115,2]
[363631861,1748793043480,-573.09247553,0.00017121,2]
[363631863,1748793043490,-500.0,0.00017121,2]
[363631865,1748793043499,-500.0,0.00017121,2]
[363631867,1748793043509,-500.0,0.00017121,2]
[363631869,1748793043524,-501.51415023,0.00017121,2]
[363631871,1748793043535,-500.0,0.00017139,2]
[363631873,1748793043545,-2561.5029443,0.00017141,2]
[363631875,1748793043555,-500.0,0.00017206,2]
[363631877,1748793043566,-500.0,0.00017206,2]
[363631879,1748793043576,-500.0,0.00017206,2]
[363631881,1748793043586,-430.0,0.0001726,2]
[363631883,1748793043596,-430.0,0.0001726,2]
[363631885,1748793043606,-430.0,0.0001726,2]
[363631887,1748793043617,-430.0,0.0001726,2]
[363631889,1748793043627,-430.0,0.0001726,2]
[363631892,1748793043636,-430.0,0.0001726,2]
[363631894,1748793043645,-430.0,0.0001726,2]
[363631896,1748793043655,-430.0,0.0001726,2]
[363631898,1748793043664,-430.0,0.0001726,2]
[363631900,1748793043673,-430.0,0.0001726,2]
[363631902,1748793043682,-432.63538322,0.0001726,2]
[363631903,1748793043692,-430.0,0.0001726,2]
[363631905,1748793043702,-430.0,0.0001726,2]
[363631907,1748793043712,-430.0,0.0001726,2]
[363631909,1748793043722,-430.0,0.0001726,2]
[363631912,1748793043733,-430.0,0.0001726,2]
[363631914,1748793043742,-430.0,0.0001726,2]
[363631916,1748793043753,-407.39603436,0.0001726,2]
[363631918,1748793043762,-430.0,0.0001726,2]
[363631920,1748793043771,-430.0,0.0001726,2]
[363631922,1748793043781,-430.0,0.0001726,2]
[363631924,1748793043791,-430.0,0.0001726,2]
[363631926,1748793043800,-430.0,0.0001726,2]
[363631941,1748793043935,-430.0,0.0001726,2]
[363631944,1748793043946,-430.0,0.0001726,2]
[363631946,1748793043957,-430.0,0.0001726,2]
[363631948,1748793043966,-516.24617768,0.0001726,2]
[363631950,1748793043976,-430.0,0.0001726,2]
[363631952,1748793043986,-430.0,0.0001726,2]
[363631954,1748793043996,-430.0,0.0001726,2]
[363631956,1748793044006,-378.24258147,0.0001726,2]
[363631958,1748793044016,-430.0,0.0001726,2]
[363631960,1748793044025,-430.0,0.0001726,2]
[363631962,1748793044035,-430.0,0.0001726,2]
[363631964,1748793044045,-358.70098202,0.0001726,2]
[363631966,1748793044055,-171.68570327,0.0001726,2]
[363631968,1748793044064,-430.0,0.0001726,2]
[363631970,1748793044074,-430.0,0.0001726,2]
[363631972,1748793044086,-430.0,0.0001726,2]
[363631974,1748793044096,-430.0,0.0001726,2]
[363631976,1748793044106,-430.0,0.0001726,2]
[363631978,1748793044117,-430.0,0.0001726,2]
[363631980,1748793044126,-430.0,0.0001726,2]
[363631982,1748793044136,-430.0,0.0001726,2]
[363631984,1748793044145,-1188.05,0.0001726,2]
[363631986,1748793044155,-983.01,0.0001726,2]
[363631988,1748793044165,-564.07,0.0001726,2]
[363631991,1748793044175,-430.0,0.0001726,2]
[363631993,1748793044185,-430.0,0.0001726,2]
[363631995,1748793044195,-733.27,0.0001726,2]
[363631997,1748793044205,-1132.2,0.0001726,2]
[363631999,1748793044215,-430.0,0.0001726,2]
[363632001,1748793044224,-430.0,0.0001726,2]
[363632002,1748793044234,-430.0,0.0001726,2]
[363632005,1748793044243,-430.0,0.0001726,2]
[363632007,1748793044252,-553.3792538,0.0001726,2]
[363632009,1748793044262,-440.32,0.0001726,2]
[363632011,1748793044272,-430.0,0.0001726,2]
[363632013,1748793044281,-250.01,0.0001726,2]
[363632015,1748793044291,-478.9,0.0001726,2]
[363632016,1748793044300,-430.0,0.0001726,2]
[363632018,1748793044310,-430.0,0.0001726,2]
[363632021,1748793044319,-430.0,0.0001726,2]
[363632022,1748793044329,-430.0,0.0001726,2]
[363632025,1748793044338,-452.99,0.0001726,2]
[363632027,1748793044348,-882.3,0.0001726,2]
[363632029,1748793044358,-772.13,0.0001726,2]
[363632030,1748793044372,-357.01,0.0001726,2]
[363632032,1748793044381,-430.0,0.0001726,2]
[363632034,1748793044390,-430.0,0.0001726,2]
[363632036,1748793044400,-500.0,0.00017315,2]
[363632038,1748793044410,-500.0,0.00017315,2]
[363632040,1748793044419,-2561.5029443,0.00017383,2]
[363632042,1748793044428,-158.1985064,0.00017424,2]
[363632044,1748793044437,-500.0,0.00017424,2]
[363632046,1748793044446,-500.0,0.00017444,2]
[363632049,1748793044457,-167.95035286,0.00017444,2]
[363632050,1748793044466,-399.38489475,0.00017506,2]
[363632052,1748793044475,-500.0,0.00017522,2]
[363632054,1748793044486,-500.0,0.00017522,2]
[363632056,1748793044495,-500.0,0.00017522,2]
[363632058,1748793044505,-1000.0,0.00017522,2]
[363632060,1748793044514,-430.0,0.00017534,2]
[363632062,1748793044522,-430.0,0.00017534,2]
[363632064,1748793044530,-430.0,0.00017534,2]
[363632066,1748793044538,-430.0,0.00017534,2]
[363632068,1748793044547,-430.0,0.00017534,2]
[363632070,1748793044556,-430.0,0.00017534,2]
[363632072,1748793044565,-430.0,0.00017534,2]
[363632074,1748793044575,-231.55355152,0.00017534,2]
[363632076,1748793044584,-430.0,0.00017534,2]
[363632078,1748793044594,-430.0,0.00017534,2]
[363632080,1748793044604,-430.0,0.00017534,2]
[363632082,1748793044613,-430.0,0.00017534,2]
[363632084,1748793044623,-430.0,0.00017534,2]
[363632086,1748793044632,-430.0,0.00017534,2]
[363632087,1748793044641,-430.0,0.00017534,2]
[363632090,1748793044651,-430.0,0.00017534,2]
[363632092,1748793044661,-430.0,0.00017534,2]
[363632093,1748793044670,-430.0,0.00017534,2]
[363632095,1748793044680,-430.0,0.00017534,2]
[363632097,1748793044689,-430.0,0.00017534,2]
[363632099,1748793044698,-430.0,0.00017534,2]
[363632101,1748793044708,-430.0,0.00017534,2]
[363632103,1748793044717,-430.0,0.00017534,2]
[363632105,1748793044726,-430.0,0.00017534,2]
[363632107,1748793044736,-430.0,0.00017534,2]
[363632109,1748793044746,-430.0,0.00017534,2]
[363632111,1748793044755,-430.0,0.00017534,2]
[363632113,1748793044765,-430.0,0.00017534,2]
[363632115,1748793044775,-430.0,0.00017534,2]
[363632117,1748793044786,-430.0,0.00017534,2]
[363632119,1748793044795,-1188.05,0.00017534,2]
[363632121,1748793044805,-983.01,0.00017534,2]
[363632123,1748793044814,-564.07,0.00017534,2]
[363632125,1748793044823,-430.0,0.00017534,2]
[363632128,1748793044833,-430.0,0.00017534,2]
[363632130,1748793044842,-733.27,0.00017534,2]
[363632132,1748793044851,-1132.2,0.00017534,2]
[363632134,1748793044860,-430.0,0.00017534,2]
[363632136,1748793044871,-430.0,0.00017534,2]
[363632138,1748793044880,-430.0,0.00017534,2]
[363632140,1748793044889,-440.32,0.00017534,2]
[363632142,1748793044897,-430.0,0.00017534,2]
[363632144,1748793044906,-478.9,0.00017534,2]
[363632146,1748793044914,-430.0,0.00017534,2]
[363632148,1748793044923,-430.0,0.00017534,2]
[363632150,1748793044933,-430.0,0.00017534,2]
[363632152,1748793044942,-430.0,0.00017534,2]
[363632154,1748793044952,-452.99,0.00017534,2]
[363632156,1748793044963,-882.3,0.00017534,2]
[363632158,1748793044973,-772.13,0.00017534,2]
[363632160,1748793044982,-430.0,0.00017534,2]
[363632162,1748793044992,-430.0,0.00017534,2]
[363632164,1748793045001,-500.0,0.00017582,2]
[363632166,1748793045011,-500.87155734,0.00017582,2]
[363632168,1748793045020,-500.0,0.00017582,2]
[363632170,1748793045030,-500.0,0.00017582,2]
[363632172,1748793045040,-500.0,0.00017582,2]
[363632174,1748793045049,-2561.5029443,0.00017624,2]
[363632176,1748793045058,-500.0,0.00017754,2]
[363632178,1748793045068,-430.0,0.00017808,2]
[363632180,1748793045077,-430.0,0.00017808,2]
[363632182,1748793045087,-430.0,0.00017808,2]
[363632184,1748793045097,-430.0,0.00017808,2]
[363632186,1748793045106,-430.0,0.00017808,2]
[363632188,1748793045115,-430.0,0.00017808,2]
[363632190,1748793045126,-453.91614142,0.00017808,2]
[363632192,1748793045135,-430.0,0.00017808,2]
[363632194,1748793045145,-430.0,0.00017808,2]
[363632196,1748793045154,-430.0,0.00017808,2]
[363632198,1748793045164,-430.0,0.00017808,2]
[363632200,1748793045173,-430.0,0.00017808,2]
[363632202,1748793045182,-430.0,0.00017808,2]
[363632204,1748793045191,-430.0,0.00017808,2]
[363632206,1748793045200,-430.0,0.00017808,2]
[363632208,1748793045209,-430.0,0.00017808,2]
[363632210,1748793045219,-1188.05,0.00017808,2]
[363632212,1748793045228,-983.01,0.00017808,2]
[363632214,1748793045237,-564.07,0.00017808,2]
[363632216,1748793045246,-430.0,0.00017808,2]
[363632218,1748793045256,-430.0,0.00017808,2]
[363632220,1748793045266,-733.27,0.00017808,2]
[363632222,1748793045275,-1132.2,0.00017808,2]
[363632224,1748793045285,-430.0,0.00017808,2]
[363632226,1748793045294,-430.0,0.00017808,2]
[363632228,1748793045304,-430.0,0.00017808,2]
[363632230,1748793045314,-440.32,0.00017808,2]
[363632232,1748793045324,-430.0,0.00017808,2]
[363632234,1748793045333,-478.9,0.00017808,2]
[363632236,1748793045343,-430.0,0.00017808,2]
[363632238,1748793045352,-430.0,0.00017808,2]
[363632240,1748793045364,-430.0,0.00017808,2]
[363632242,1748793045374,-430.0,0.00017808,2]
[363632244,1748793045387,-452.99,0.00017808,2]
[363632246,1748793045397,-882.3,0.00017808,2]
[363632247,1748793045407,-772.13,0.00017808,2]
[363632249,1748793045416,-194.43,0.00017808,2]
[363632251,1748793045426,-430.0,0.00017808,2]
[363632254,1748793045436,-500.0,0.00017863,2]
[363632256,1748793045447,-2561.5029443,0.00017866,2]
[363632258,1748793045457,-1713.89721692,0.0001788,2]
[363632260,1748793045467,-182.95,0.00018,2]
[363632262,1748793045478,-974.2,0.00018072,3]
[363632264,1748793045487,-487.1,0.00018072,3]
[363632266,1748793045498,-430.0,0.00018082,2]
[363632268,1748793045509,-430.0,0.00018082,2]
[363632270,1748793045519,-430.0,0.00018082,2]
[363632272,1748793045528,-430.0,0.00018082,2]
[363632274,1748793045538,-430.0,0.00018082,2]
[363632276,1748793045548,-430.0,0.00018082,2]
[363632278,1748793045558,-430.0,0.00018082,2]
[363632280,1748793045567,-458.89,0.00018082,2]
[363632282,1748793045577,-1188.05,0.00018082,2]
[363632284,1748793045586,-983.01,0.00018082,2]
[363632286,1748793045596,-564.07,0.00018082,2]
[363632288,1748793045606,-430.0,0.00018082,2]
[363632290,1748793045617,-430.0,0.00018082,2]
[363632292,1748793045627,-733.27,0.00018082,2]
[363632294,1748793045636,-1132.2,0.00018082,2]
[363632296,1748793045646,-430.0,0.00018082,2]
[363632298,1748793045656,-430.0,0.00018082,2]
[363632300,1748793045666,-430.0,0.00018082,2]
[363632302,1748793045675,-440.32,0.00018082,2]
[363632304,1748793045685,-191.12576746,0.00018082,2]
[363632306,1748793045694,-478.9,0.00018082,2]
[363632308,1748793045704,-430.0,0.00018082,2]
[363632310,1748793045713,-430.0,0.00018082,2]
[363632312,1748793045723,-430.0,0.00018082,2]
[363632314,1748793045732,-430.0,0.00018082,2]
[363632316,1748793045742,-452.99,0.00018082,2]
[363632318,1748793045751,-882.3,0.00018082,2]
[363632320,1748793045761,-772.13,0.00018082,2]
[363632322,1748793045771,-430.0,0.00018082,2]
[363632324,1748793045780,-2561.5029443,0.00018107,2]
[363632326,1748793045790,-1000.0,0.0001813,2]